bitfinex-derivatives/quotes_BTCF0:USTF0_20240902
["timestamp","ask_amount","ask_price","bid_price","bid_amount"]
[1725246243273,0.0004,57681.0,57680.0,1.2760624]
[1725246243479,0.0004,57681.0,57680.0,1.20706904]
[1725246243985,0.0004,57681.0,57680.0,1.40706904]
[1725246244177,0.004,57684.0,57683.0,0.086684]
[1725246244380,0.0498,57691.0,57690.0,0.086674]
[1725246244687,0.0498,57691.0,57690.0,0.286674]
[1725246244885,0.24907383,57691.0,57690.0,0.286674]
[1725246245081,0.00025928,57692.0,57691.0,0.086672]
[1725246245690,0.00025928,57692.0,57691.0,1.63646654]
[1725246245893,0.086644,57710.0,57691.0,1.63646654]
[1725246245894,0.3608,57711.0,57705.0,0.086651]
[1725246246079,0.3608,57711.0,57708.0,0.2]
[1725246246080,0.0462,57710.0,57708.0,0.2]
[1725246246281,0.1912385,57709.0,57708.0,0.2]
[1725246246787,0.0462,57710.0,57708.0,0.2]
[1725246246989,0.19730022,57709.0,57708.0,0.2]
[1725246247588,0.19730022,57709.0,57708.0,0.201]
[1725246248991,0.19730022,57709.0,57708.0,0.2]
[1725246249175,0.21130022,57709.0,57708.0,0.201]
[1725246249382,0.21130022,57709.0,57708.0,0.001]
[1725246250404,0.21130022,57709.0,57696.0,0.05172275]
[1725246250405,0.086663,57697.0,57696.0,0.05172275]
[1725246250691,0.51984,57708.0,57692.0,0.41252275]
[1725246250692,0.086666,57695.0,57692.0,0.41252275]
[1725246250880,0.086666,57695.0,57692.0,0.05172275]
[1725246251082,0.086666,57695.0,57686.0,0.28668]
[1725246251083,0.18778193,57694.0,57688.0,0.05172275]
[1725246251491,0.18778193,57694.0,57690.0,0.05172275]
[1725246251678,0.18778193,57694.0,57690.0,0.25172275]
[1725246252190,0.18674326,57696.0,57691.0,0.05172275]
[1725246252386,0.01126004,57697.0,57696.0,0.001]
[1725246252890,0.1980033,57697.0,57696.0,0.001]
[1725246253101,0.1870033,57697.0,57691.0,0.05172275]
[1725246253283,0.005,57694.0,57690.0,0.05172275]
[1725246253484,0.005,57694.0,57689.0,0.05172275]
[1725246253684,0.005,57694.0,57686.0,0.56168]
[1725246253685,0.086671,57692.0,57687.0,0.05172275]
[1725246253993,0.18799366,57691.0,57687.0,0.05172275]
[1725246254782,0.01126004,57697.0,57696.0,0.086665]
[1725246254992,0.01126004,57697.0,57696.0,0.65612556]
[1725246255294,0.00368951,57709.0,57708.0,0.086647]
[1725246255597,0.3618,57716.0,57708.0,0.5608]
[1725246255900,0.3618,57716.0,57715.0,0.2]
[1725246255901,0.3608,57716.0,57715.0,0.2]
[1725246256193,0.54480426,57716.0,57715.0,0.2]
[1725246256694,0.54480426,57716.0,57711.0,0.2]
[1725246257002,0.55880426,57716.0,57711.0,0.2]
[1725246257693,0.19800426,57716.0,57715.0,0.001]
[1725246257884,0.84543926,57716.0,57715.0,0.001]
[1725246258085,0.086642,57711.0,57710.0,0.00026004]
[1725246258589,0.086657,57702.0,57699.0,0.051774]
[1725246258891,0.32442538,57701.0,57697.0,0.56172]
[1725246259097,0.19096838,57701.0,57700.0,0.086659]
[1725246259305,0.18996838,57710.0,57704.0,0.086653]
[1725246259597,0.44856301,57711.0,57704.0,0.086653]
[1725246259898,0.19096838,57710.0,57704.0,0.086653]
[1725246260990,0.19096838,57710.0,57704.0,0.087653]
[1725246261195,0.19096838,57710.0,57704.0,0.001]
[1725246261386,0.19096838,57710.0,57704.0,0.201]
[1725246261686,0.00026004,57712.0,57704.0,0.201]
[1725246261888,0.18588806,57711.0,57704.0,0.201]
[1725246262093,0.00026004,57712.0,57704.0,0.252774]
[1725246262295,0.20069919,57711.0,57704.0,0.252774]
[1725246262789,0.00026004,57712.0,57709.0,0.086645]
[1725246262999,0.01126004,57712.0,57709.0,0.086645]
[1725246263498,0.19957159,57711.0,57709.0,0.086645]
[1725246263886,0.21157159,57711.0,57709.0,0.086645]
[1725246264092,0.21157159,57711.0,57704.0,0.339426]
[1725246264289,0.2,57705.0,57704.0,0.001]
[1725246264501,0.086656,57702.0,57693.0,0.051774]
[1725246264796,0.28508531,57702.0,57692.0,0.051774]
[1725246264995,0.28508531,57702.0,57691.0,0.051774]
[1725246265192,0.80500531,57702.0,57691.0,0.051774]
[1725246265399,1.49166131,57702.0,57690.0,0.051774]
[1725246265586,1.49166131,57702.0,57688.0,0.051774]
[1725246265587,1.31834931,57702.0,57688.0,0.051774]
[1725246265896,0.2,57696.0,57687.0,0.086678]
[1725246266294,0.22756809,57695.0,57687.0,0.086678]
[1725246266494,0.22656809,57695.0,57687.0,0.086678]
[1725246266793,0.086673,57691.0,57687.0,0.086678]
[1725246267197,0.19599479,57690.0,57687.0,0.086678]
[1725246267699,0.19599479,57690.0,57687.0,0.138452]
[1725246268595,0.00026004,57697.0,57696.0,0.086665]
[1725246268788,0.00026004,57697.0,57696.0,0.647465]
[1725246268987,0.00026004,57697.0,57696.0,1.167425]
[1725246269492,0.00026004,57697.0,57696.0,1.23647487]
[1725246270199,0.00026004,57697.0,57696.0,0.647465]
[1725246271389,0.19316721,57697.0,57696.0,0.447465]
[1725246271999,0.19916721,57697.0,57696.0,0.448465]
[1725246272596,0.19316721,57697.0,57696.0,0.447465]
[1725246272897,0.19716721,57697.0,57696.0,0.447465]
[1725246276210,0.00426004,57697.0,57696.0,0.51652382]
[1725246276502,0.00426004,57697.0,57696.0,0.447465]
[1725246276701,0.00426004,57697.0,57696.0,0.51658564]
[1725246277003,0.00426004,57697.0,57696.0,0.51658532]
[1725246277194,0.00426004,57697.0,57696.0,0.447465]
[1725246279610,0.00426004,57697.0,57696.0,1.7858511]
[1725246279797,0.00426004,57697.0,57696.0,1.69946637]
[1725246280194,0.00426004,57697.0,57696.0,5.46946637]
[1725246281500,0.00426004,57697.0,57696.0,5.38927592]
[1725246281699,0.00026004,57697.0,57696.0,5.338425]
[1725246282098,0.00026004,57697.0,57696.0,5.39027592]
[1725246282404,0.10367677,57713.0,57696.0,5.39027592]
[1725246282405,0.08639731,57708.0,57696.0,5.45176]
[1725246282615,0.08639731,57715.0,57714.0,0.086638]
[1725246282800,0.08639731,57716.0,57715.0,0.086636]
[1725246283103,0.08639731,57716.0,57715.0,0.286636]
[1725246283300,0.10367677,57721.0,57715.0,0.286636]
[1725246283613,0.29056887,57721.0,57715.0,0.086636]
[1725246283819,0.29056887,57721.0,57712.0,0.00026004]
[1725246283820,0.10367677,57720.0,57712.0,0.00026004]
[1725246284111,0.10367677,57718.0,57714.0,0.086638]
[1725246284408,0.23610705,57717.0,57714.0,0.086638]
[1725246285013,0.086639,57713.0,57712.0,0.00026004]
[1725246285207,0.086652,57705.0,57697.0,0.286662]
[1725246285398,0.086665,57696.0,57695.0,0.3608]
[1725246285807,0.18890447,57696.0,57695.0,0.3608]
[1725246286211,0.086658,57701.0,57696.0,0.086665]
[1725246286212,0.19174388,57697.0,57696.0,0.086665]
[1725246286412,0.00026004,57701.0,57696.0,0.086665]
[1725246286618,0.19274388,57700.0,57696.0,0.086665]
[1725246286915,0.19274388,57700.0,57695.0,0.3608]
[1725246286916,0.10392709,57701.0,57695.0,0.3608]
[1725246287209,0.086664,57697.0,57695.0,0.3608]
[1725246287604,0.19863296,57696.0,57695.0,0.3608]
[1725246288314,0.20863296,57696.0,57695.0,0.3618]
[1725246288805,0.20863296,57696.0,57695.0,0.001]
[1725246289011,0.20863296,57696.0,57692.0,0.15580557]
[1725246289012,0.19863296,57696.0,57692.0,0.15580557]
[1725246289206,0.20763296,57696.0,57695.0,0.001]
[1725246290514,0.29429796,57696.0,57695.0,0.001]
[1725246291115,0.29129796,57696.0,57692.0,0.07013457]
[1725246291318,0.29129796,57696.0,57693.0,0.06913457]
[1725246291502,0.29129796,57696.0,57692.0,0.07013457]
[1725246291910,0.29429796,57696.0,57695.0,0.001]
[1725246292814,0.29429796,57696.0,57691.0,0.06913457]
[1725246292815,0.19863296,57696.0,57691.0,0.06913457]
[1725246293010,0.20463296,57696.0,57692.0,0.001]
[1725246293308,0.20463296,57696.0,57692.0,0.07013457]
[1725246293309,0.086669,57693.0,57692.0,0.07013457]
[1725246293516,0.086669,57693.0,57692.0,0.001]
[1725246293809,0.28204584,57693.0,57692.0,0.001]
[1725246294514,0.28204584,57693.0,57690.0,0.43019461]
[1725246294515,0.085672,57691.0,57690.0,0.43019461]
[1725246294910,0.2749686,57691.0,57690.0,0.43019461]
[1725246295519,1.4816406,57691.0,57690.0,0.00026004]
[1725246295821,0.8806406,57691.0,57690.0,0.00026004]
[1725246296004,1.6239406,57691.0,57690.0,0.00026004]
[1725246296312,1.0239406,57691.0,57690.0,0.00026004]
[1725246297518,0.3750686,57691.0,57690.0,0.36106004]
[1725246299211,0.3750686,57691.0,57690.0,0.00026004]
[1725246301116,0.1932966,57691.0,57690.0,0.28693404]
[1725246301314,0.004,57691.0,57690.0,0.28693404]
[1725246301920,0.004,57691.0,57690.0,4.05693404]
[1725246302114,0.004,57691.0,57690.0,5.17693404]
[1725246302421,0.00373996,57691.0,57690.0,5.17693404]
[1725246303117,0.00026004,57701.0,57700.0,0.086659]
[1725246303312,0.00026004,57701.0,57700.0,0.447459]
[1725246303514,0.00026004,57701.0,57700.0,0.51658132]
[1725246303719,0.00026004,57701.0,57700.0,0.447459]
[1725246304419,0.01426004,57701.0,57700.0,0.448459]
[1725246306126,0.19994517,57701.0,57700.0,0.3618]
[1725246306421,0.71986517,57701.0,57700.0,0.001]
[1725246306624,1.76732217,57701.0,57700.0,0.001]
[1725246307028,1.85397917,57701.0,57700.0,0.001]
[1725246307627,1.85397917,57701.0,57691.0,0.05183869]
[1725246307628,0.086671,57692.0,57691.0,0.05183869]
[1725246307817,0.086672,57691.0,57690.0,0.00026004]
[1725246308017,0.701572,57691.0,57690.0,0.00026004]
[1725246308225,1.49771214,57691.0,57690.0,0.00026004]
[1725246308635,1.58438414,57691.0,57690.0,0.00026004]
[1725246309135,0.89771214,57691.0,57690.0,0.00026004]
[1725246309522,0.37771214,57691.0,57690.0,0.00026004]
[1725246309830,0.89771214,57691.0,57690.0,0.00026004]
[1725246310428,0.89771214,57691.0,57681.0,0.05183869]
[1725246310429,0.086674,57690.0,57681.0,0.05183869]
[1725246310725,0.086689,57680.0,57679.0,0.05183869]
[1725246311028,0.086689,57680.0,57676.0,0.41263869]
[1725246311029,0.086692,57678.0,57676.0,0.41263869]
[1725246311433,0.20015966,57677.0,57676.0,0.41263869]
[1725246311732,0.19315966,57677.0,57676.0,0.41263869]
[1725246312033,0.19315966,57677.0,57676.0,0.3608]
[1725246312528,0.27985366,57677.0,57676.0,0.3608]
[1725246312723,0.27985366,57677.0,57676.0,0.41261657]
[1725246313335,0.27985366,57677.0,57676.0,0.3698]
[1725246313718,0.27985366,57677.0,57676.0,0.009]
[1725246313927,0.37575366,57677.0,57676.0,0.009]
[1725246314135,0.086698,57674.0,57673.0,0.05181657]
[1725246314324,0.086698,57674.0,57671.0,0.00026004]
[1725246314325,0.0867,57673.0,57672.0,0.05181657]
[1725246314726,0.27843151,57673.0,57671.0,0.00026004]
[1725246315039,0.078701,57672.0,57671.0,0.00026004]
[1725246315431,0.26634084,57672.0,57671.0,0.00026004]
[1725246317443,0.26734084,57672.0,57671.0,0.00026004]
[1725246318431,0.26734084,57672.0,57671.0,0.05203598]
[1725246318630,0.26734084,57672.0,57671.0,0.00026004]
[1725246320135,0.086704,57670.0,57669.0,0.38983598]
[1725246320330,0.086704,57670.0,57669.0,0.33806004]
[1725246320537,0.27658165,57670.0,57669.0,0.33806004]
[1725246321544,0.79678165,57670.0,57669.0,0.33806004]
[1725246322442,0.27658165,57670.0,57669.0,0.33806004]
[1725246323547,0.79678165,57670.0,57669.0,0.33806004]
[1725246323739,0.27658165,57670.0,57669.0,0.33806004]
[1725246324840,0.36328565,57670.0,57669.0,0.33806004]
[1725246325141,0.086712,57665.0,57664.0,0.00026004]
[1725246325646,0.28652407,57665.0,57664.0,0.00026004]
[1725246330046,0.44652407,57665.0,57664.0,0.00026004]
[1725246332036,0.28652407,57665.0,57664.0,0.36106004]
[1725246336757,0.28652407,57665.0,57664.0,0.41291648]
[1725246337451,0.28652407,57665.0,57664.0,0.36106004]
[1725246339943,0.28652407,57665.0,57664.0,0.43018236]
[1725246340142,0.28652407,57665.0,57664.0,0.60777304]
[1725246340143,0.19981207,57665.0,57664.0,0.60777304]
[1725246340449,0.00026004,57670.0,57669.0,0.086706]
[1725246340655,0.00026004,57670.0,57669.0,0.447506]
[1725246342139,0.086709,57667.0,57665.0,0.08641821]
[1725246342346,0.18992617,57670.0,57664.0,0.36106004]
[1725246342347,0.16,57666.0,57664.0,0.36106004]
[1725246342546,0.132212,57665.0,57664.0,0.36106004]
[1725246342946,0.32187813,57665.0,57664.0,0.36106004]
[1725246343655,0.32227813,57665.0,57664.0,0.36106004]
[1725246344556,0.32227813,57665.0,57664.0,0.43033183]
[1725246344952,0.32227813,57665.0,57664.0,0.36106004]
[1725246345150,0.32227813,57665.0,57664.0,0.00026004]
[1725246345550,0.27677813,57665.0,57664.0,0.00026004]
[1725246346148,0.19006613,57665.0,57664.0,0.08697304]
[1725246346348,0.19006613,57665.0,57664.0,0.21839125]
[1725246346349,0.0004,57665.0,57664.0,0.21839125]
[1725246346548,0.00013996,57665.0,57664.0,1.38433987]
[1725246346760,0.00013996,57665.0,57664.0,5.15433513]
[1725246346957,0.00026004,57670.0,57669.0,0.086706]
[1725246347256,0.1335521,57691.0,57678.0,0.086691]
[1725246347463,0.001,57692.0,57687.0,0.05195116]
[1725246347652,0.3608,57695.0,57691.0,0.05195116]
[1725246347850,0.3608,57695.0,57692.0,0.05195116]
[1725246348059,0.19246011,57694.0,57692.0,0.05195116]
[1725246348463,0.19246011,57694.0,57691.0,0.05195116]
[1725246348757,0.16,57696.0,57687.0,0.00026004]
[1725246348758,0.12912167,57693.0,57687.0,0.00026004]
[1725246349058,0.15557818,57691.0,57687.0,0.00026004]
[1725246349251,0.28469985,57690.0,57687.0,0.00026004]
[1725246349553,0.07592228,57689.0,57687.0,0.00026004]
[1725246349759,0.07592228,57688.0,57687.0,0.00026004]
[1725246349955,0.23189736,57688.0,57687.0,0.00026004]
[1725246350159,0.07592228,57688.0,57687.0,0.00026004]
[1725246350357,0.0334793,57688.0,57687.0,0.00026004]
[1725246350554,0.21681398,57688.0,57687.0,0.00026004]
[1725246350754,0.25925696,57688.0,57687.0,0.00026004]
[1725246351062,0.25925696,57688.0,57687.0,0.08693804]
[1725246351259,0.22577869,57688.0,57687.0,0.08693804]
[1725246351450,0.25925881,57688.0,57687.0,0.08693804]
[1725246351647,0.39734507,57688.0,57687.0,0.08693804]
[1725246353359,0.25925881,57688.0,57687.0,0.08693804]
[1725246354065,0.25925881,57688.0,57687.0,0.00026004]
[1725246354560,0.39729161,57688.0,57687.0,0.00026004]
[1725246354759,0.34593581,57688.0,57687.0,0.00026004]
[1725246355361,0.55914117,57688.0,57687.0,0.00026004]
[1725246355958,1.23475935,57688.0,57687.0,0.00026004]
[1725246356163,1.32143635,57688.0,57687.0,0.00026004]
[1725246356459,1.11265281,57688.0,57687.0,0.00026004]
[1725246356759,1.03672868,57688.0,57687.0,0.00026004]
[1725246356961,1.63672868,57688.0,57687.0,0.00026004]
[1725246358067,1.63672868,57688.0,57687.0,4e-08]
[1725246358363,0.0867,57673.0,57672.0,0.3608]
[1725246358553,0.0871,57673.0,57672.0,0.3608]
[1725246358753,0.27299008,57673.0,57672.0,0.3608]
[1725246361452,0.18629008,57673.0,57667.0,0.4139712]
[1725246361658,0.18629008,57673.0,57667.0,0.4130112]
[1725246361659,0.087107,57668.0,57667.0,0.4130112]
[1725246361853,0.087107,57668.0,57667.0,0.36106004]
[1725246362053,0.2717711,57668.0,57667.0,0.36106004]
[1725246362253,0.2717711,57668.0,57667.0,0.00026004]
[1725246362464,0.3584781,57668.0,57667.0,0.00026004]
[1725246363064,1.12907085,57668.0,57667.0,4e-08]
[1725246363263,0.60883085,57668.0,57667.0,4e-08]
[1725246363567,1.72907085,57668.0,57667.0,4e-08]
[1725246363760,1.73758555,57668.0,57667.0,4e-08]
[1725246364263,1.13758555,57668.0,57667.0,4e-08]
[1725246364475,1.73758555,57668.0,57667.0,4e-08]
[1725246366566,0.88236385,57668.0,57667.0,4e-08]
[1725246366765,0.2717711,57668.0,57667.0,4e-08]
[1725246367161,0.4317711,57668.0,57667.0,4e-08]
[1725246368271,1.40058161,57668.0,57653.0,0.05195116]
[1725246368463,0.1604,57654.0,57648.0,0.05195116]
[1725246368770,0.18759849,57653.0,57646.0,0.3608]
[1725246368962,0.0004,57647.0,57646.0,0.3608]
[1725246369270,0.19229408,57647.0,57646.0,0.3608]
[1725246369570,0.19229408,57647.0,57646.0,0.4125373]
[1725246369767,0.19229408,57647.0,57646.0,1.7796773]
[1725246369980,0.00026004,57652.0,57651.0,0.086733]
[1725246370163,0.00026004,57652.0,57651.0,0.607533]
[1725246370871,0.00026004,57652.0,57651.0,1.253133]
[1725246371078,0.00026004,57652.0,57651.0,1.773493]
[1725246371371,0.16,57673.0,57651.0,1.68676]
[1725246371672,0.18704448,57665.0,57662.0,0.086716]
[1725246371971,0.18704448,57665.0,57661.0,0.3608]
[1725246371972,0.086709,57667.0,57661.0,0.3608]
[1725246372175,0.086709,57667.0,57656.0,0.25729151]
[1725246372176,0.086717,57662.0,57656.0,0.086724]
[1725246372671,0.18315056,57661.0,57656.0,0.086724]
[1725246372868,0.18315056,57661.0,57658.0,0.3608]
[1725246373367,0.16,57661.0,57653.0,0.00026004]
[1725246373576,0.086725,57657.0,57653.0,0.00026004]
[1725246373768,0.086726,57656.0,57653.0,0.00026004]
[1725246373967,0.26778465,57656.0,57653.0,0.00026004]
[1725246374280,0.086726,57656.0,57653.0,0.00026004]
[1725246374469,0.19785192,57655.0,57653.0,0.00026004]
[1725246374667,0.28457892,57655.0,57653.0,0.00026004]
[1725246375067,0.086727,57655.0,57653.0,0.00026004]
[1725246375270,0.19900442,57654.0,57653.0,0.00026004]
[1725246381782,0.28573242,57654.0,57653.0,0.00026004]
[1725246382079,0.246728,57654.0,57653.0,0.00026004]
[1725246382271,0.086728,57654.0,57653.0,0.00026004]
[1725246382581,0.27290207,57654.0,57653.0,0.00026004]
[1725246384387,0.27290207,57654.0,57653.0,0.05195155]
[1725246385584,0.27290207,57654.0,57653.0,0.00026004]
[1725246388485,0.27290207,57654.0,57653.0,0.06952825]
[1725246388986,0.27290207,57654.0,57653.0,0.00026004]
[1725246389174,0.27290207,57654.0,57653.0,0.06949361]
[1725246389481,0.27290207,57654.0,57653.0,0.00026004]
[1725246390886,0.18617407,57654.0,57653.0,1.3395037]
[1725246391087,0.00026004,57665.0,57653.0,1.3395037]
[1725246391380,0.00026004,57665.0,57664.0,0.246713]
[1725246391584,0.00026004,57665.0,57664.0,0.31597444]
[1725246391795,0.18735172,57665.0,57664.0,0.31597444]
[1725246391975,0.18735172,57665.0,57664.0,0.31599852]
[1725246392382,0.18735172,57665.0,57664.0,0.246713]
[1725246392786,0.00026004,57665.0,57664.0,0.246713]
[1725246392985,0.00026004,57665.0,57664.0,0.37884327]
[1725246393281,0.00026004,57665.0,57664.0,1.60290856]
[1725246393488,0.00026004,57665.0,57664.0,1.49908327]
[1725246393781,0.00026004,57665.0,57664.0,1.50269142]
[1725246393988,0.00026004,57665.0,57664.0,1.51135082]
[1725246394188,0.08659888,57685.0,57677.0,0.086693]
[1725246394388,0.08668,57686.0,57679.0,0.16]
[1725246394683,0.18113299,57683.0,57679.0,0.24669]
[1725246394890,0.18113299,57685.0,57679.0,0.24669]
[1725246395077,0.08668,57686.0,57679.0,0.24669]
[1725246395278,0.19782455,57685.0,57679.0,0.24669]
[1725246395588,0.19782455,57685.0,57679.0,0.08669]
[1725246395589,0.28450655,57685.0,57679.0,0.08669]
[1725246395778,0.28450655,57685.0,57677.0,0.00026004]
[1725246395779,0.086686,57682.0,57677.0,0.00026004]
[1725246395981,0.0004,57678.0,57677.0,0.00026004]
[1725246396485,0.19477594,57678.0,57677.0,0.00026004]
[1725246397682,0.28146794,57678.0,57677.0,0.00026004]
[1725246399393,0.80158794,57678.0,57677.0,0.00026004]
[1725246399593,0.086694,57677.0,57666.0,0.00371614]
[1725246399895,0.0004,57667.0,57664.0,0.16]
[1725246400188,0.0004,57665.0,57664.0,0.16]
[1725246400489,0.27402069,57665.0,57664.0,0.16]
[1725246401393,0.086714,57664.0,57662.0,0.0035681]
[1725246401583,0.087115,57663.0,57660.0,0.16]
[1725246401784,0.0004,57661.0,57660.0,0.16]
[1725246403094,0.0004,57661.0,57660.0,0.16362784]
[1725246403589,0.0004,57661.0,57660.0,0.16]
[1725246404693,0.19663944,57661.0,57659.0,0.00026004]
[1725246404883,0.086719,57660.0,57659.0,0.00026004]
[1725246405087,0.087119,57660.0,57659.0,0.00026004]
[1725246405292,0.28335844,57660.0,57659.0,0.00026004]
[1725246406494,0.89035744,57660.0,57659.0,0.00026004]
[1725246406684,0.37007744,57660.0,57659.0,0.00026004]
[1725246406880,0.37367961,57660.0,57659.0,0.00026004]
[1725246407483,0.89395961,57660.0,57659.0,0.00026004]
[1725246407897,0.37367961,57660.0,57659.0,0.00026004]
[1725246408401,0.89395961,57660.0,57659.0,0.00026004]
[1725246408891,0.37367961,57660.0,57659.0,0.00026004]
[1725246409592,0.89395961,57660.0,57659.0,0.00026004]
[1725246411287,1.49395961,57660.0,57659.0,0.00026004]
[1725246412395,0.89395961,57660.0,57659.0,0.00026004]
[1725246412894,1.49395961,57660.0,57659.0,0.00026004]
[1725246413194,0.89395961,57660.0,57659.0,0.00026004]
[1725246413389,1.49395961,57660.0,57659.0,0.00026004]
[1725246413893,0.89395961,57660.0,57659.0,0.00026004]
[1725246415698,1.25475961,57660.0,57659.0,0.00026004]
[1725246416391,0.73447961,57660.0,57659.0,0.00026004]
[1725246416591,0.64776061,57660.0,57659.0,0.00026004]
[1725246416795,0.28335844,57660.0,57659.0,0.00026004]
[1725246417197,0.19663944,57660.0,57659.0,0.00026004]
[1725246417492,0.19663944,57660.0,57659.0,0.08698104]
[1725246418088,0.19663944,57660.0,57659.0,0.50330797]
[1725246418394,0.0004,57663.0,57662.0,0.086716]
[1725246418596,0.0004,57663.0,57662.0,0.246716]
[1725246418788,0.0004,57663.0,57662.0,0.766996]
[1725246419286,0.0004,57663.0,57662.0,5.136996]
[1725246419683,0.00026004,57670.0,57669.0,0.086706]
[1725246419889,0.00026004,57670.0,57669.0,0.607506]
[1725246420084,0.00026004,57670.0,57669.0,1.127706]
[1725246420288,0.00026004,57670.0,57669.0,1.536106]
[1725246422681,0.00026004,57670.0,57669.0,1.58781042]
[1725246423094,0.00026004,57670.0,57669.0,1.536106]
[1725246423390,0.00026004,57670.0,57669.0,1.015906]
[1725246423787,0.00026004,57670.0,57669.0,1.01961403]
[1725246424095,0.00026004,57670.0,57669.0,1.53981403]
[1725246425295,0.00026004,57670.0,57669.0,1.01961403]
[1725246426791,0.00026004,57670.0,57669.0,2.13981403]
[1725246427301,0.00026004,57670.0,57669.0,1.53981403]
[1725246428193,0.00026004,57670.0,57669.0,2.13981403]
[1725246428498,0.00026004,57670.0,57669.0,1.53981403]
[1725246428897,0.00026004,57670.0,57669.0,2.13981403]
[1725246429092,0.10351043,57679.0,57678.0,0.086692]
[1725246429294,0.10351043,57680.0,57679.0,0.08669]
[1725246429489,0.10351043,57681.0,57679.0,0.24669]
[1725246429700,0.10351043,57680.0,57679.0,0.24669]
[1725246429901,0.28448456,57680.0,57679.0,0.24669]
[1725246430199,0.10351043,57681.0,57679.0,0.24669]
[1725246430397,0.10351043,57681.0,57680.0,0.086689]
[1725246430602,0.10351043,57682.0,57681.0,0.086687]
[1725246430999,0.29465718,57682.0,57681.0,0.086687]
[1725246431496,0.19114675,57682.0,57681.0,0.086687]
[1725246432002,0.10351043,57683.0,57681.0,0.086687]
[1725246432202,0.173374,57681.0,57680.0,0.05170642]
[1725246432402,0.086697,57675.0,57674.0,0.00026004]
[1725246432705,0.086713,57665.0,57659.0,0.21170642]
[1725246432907,0.086705,57670.0,57662.0,0.5208]
[1725246433207,0.19005336,57669.0,57666.0,0.16]
[1725246433406,0.27675936,57669.0,57666.0,0.16]
[1725246433601,0.086707,57668.0,57666.0,0.16]
[1725246433996,0.19904528,57667.0,57663.0,0.16]
[1725246434198,0.086715,57663.0,57662.0,0.36106004]
[1725246434698,0.28415802,57663.0,57662.0,0.36106004]
[1725246438505,0.28415802,57663.0,57662.0,0.00026004]
[1725246440316,0.28415802,57663.0,57662.0,0.16026004]
[1725246440507,0.19744302,57663.0,57662.0,0.16026004]
[1725246440905,0.19111145,57672.0,57662.0,0.16026004]
[1725246441209,0.086706,57669.0,57668.0,0.16]
[1725246441619,0.27419745,57669.0,57668.0,0.16]
[1725246441909,0.18749145,57669.0,57668.0,0.246707]
[1725246442413,0.18749145,57672.0,57668.0,0.246707]
[1725246442607,0.00026004,57673.0,57668.0,0.246707]
[1725246442913,0.18172441,57672.0,57668.0,0.246707]
[1725246443100,0.18172441,57672.0,57671.0,0.16]
[1725246443304,0.18172441,57672.0,57671.0,0.246703]
[1725246444402,0.00026004,57673.0,57672.0,0.086701]
[1725246444603,0.00026004,57673.0,57672.0,0.606861]
[1725246444802,0.00026004,57673.0,57672.0,1.206861]
[1725246447109,0.00026004,57673.0,57672.0,0.606861]
[1725246447807,0.00026004,57673.0,57672.0,0.61058957]
[1725246448616,0.00026004,57673.0,57672.0,1.21058957]
[1725246449010,0.00026004,57673.0,57672.0,1.57138957]
[1725246450200,0.00026004,57673.0,57672.0,0.97138957]
[1725246451918,0.00026004,57673.0,57672.0,0.45122957]
[1725246452413,0.00026004,57673.0,57672.0,0.52030314]
[1725246453906,0.00026004,57673.0,57672.0,0.45122957]
[1725246454415,0.10351043,57701.0,57672.0,1.48468857]
[1725246454607,0.3608,57707.0,57699.0,0.16]
[1725246454608,0.1461,57703.0,57699.0,0.16]
[1725246454809,0.28670188,57703.0,57702.0,0.086656]
[1725246455015,0.086646,57709.0,57701.0,0.05178588]
[1725246455210,0.086646,57709.0,57705.0,0.16]
[1725246455416,0.18920188,57706.0,57705.0,0.16]
[1725246455614,0.086646,57709.0,57705.0,0.16]
[1725246455914,0.1882497,57706.0,57705.0,0.16]
[1725246456318,0.1882497,57707.0,57705.0,0.16]
[1725246456513,0.1882497,57707.0,57706.0,0.16]
[1725246456709,0.04846004,57711.0,57706.0,0.16]
[1725246456917,0.04846004,57711.0,57710.0,0.16]
[1725246457215,0.23068937,57711.0,57710.0,0.16]
[1725246458915,0.18248937,57711.0,57710.0,0.5208]
[1725246459120,0.047,57723.0,57721.0,0.086627]
[1725246459324,0.047,57723.0,57722.0,0.3608]
[1725246459619,0.36929829,57736.0,57722.0,0.3608]
[1725246459620,0.00360826,57736.0,57722.0,1.04052]
[1725246459818,0.00360826,57736.0,57735.0,0.16]
[1725246460125,0.18589596,57735.0,57730.0,0.00025981]
[1725246460311,0.18950422,57736.0,57730.0,0.00025981]
[1725246460312,0.18950422,57736.0,57734.0,0.16]
[1725246460506,0.00360826,57736.0,57734.0,0.16]
[1725246460708,0.19075834,57735.0,57734.0,0.16]
[1725246461007,0.00025981,57741.0,57734.0,1.1196]
[1725246461211,0.00025981,57741.0,57740.0,0.16]
[1725246461612,0.21405234,57741.0,57740.0,0.16]
[1725246461815,0.25645616,57741.0,57740.0,0.16]
[1725246462119,0.2564563,57741.0,57740.0,0.16]
[1725246462316,0.21405234,57741.0,57740.0,0.16]
[1725246464421,0.18060354,57741.0,57740.0,0.16]
[1725246465213,0.28304688,57741.0,57740.0,0.16]
[1725246465409,0.18060354,57741.0,57740.0,0.16]
[1725246468319,0.26720054,57741.0,57740.0,0.16]
[1725246468525,0.0866,57739.0,57738.0,0.3608]
[1725246468821,0.28125147,57739.0,57738.0,0.3608]
[1725246470020,0.64205147,57739.0,57733.0,0.16]
[1725246470214,0.64205147,57739.0,57730.0,0.00025981]
[1725246470215,0.64205147,57739.0,57736.0,0.16]
[1725246470518,0.28125147,57739.0,57736.0,0.5208]
[1725246470927,0.19465147,57739.0,57736.0,0.3608]
[1725246471121,0.086603,57737.0,57736.0,0.3608]
[1725246471424,0.27756596,57737.0,57736.0,0.3608]
[1725246471924,0.19096296,57737.0,57736.0,0.447405]
[1725246472121,0.19096296,57737.0,57736.0,0.3608]
[1725246472517,0.27756596,57737.0,57736.0,0.3608]
[1725246474722,0.19096296,57737.0,57736.0,0.3608]
[1725246474922,0.00025981,57741.0,57736.0,0.3608]
[1725246475127,0.00025981,57741.0,57740.0,0.16]
[1725246475322,0.08685681,57741.0,57740.0,0.16]
[1725246475728,0.26973059,57741.0,57740.0,0.16]
[1725246477631,0.00025981,57741.0,57740.0,0.16]
[1725246480434,0.1998011,57741.0,57740.0,0.16]
[1725246481824,0.1998011,57741.0,57740.0,0.246599]
[1725246482031,0.00025981,57741.0,57740.0,0.246599]